{"text_format":"1","workbook":"xlsx","n_sheets":3,"sheets":["Teilnehmerliste","Tabelle 2","Tabelle 3"],"not_rendered":{"charts":0,"images":2,"macros":1,"external_links":0,"defined_names":3,"comments":0,"pivot_tables":0},"unopened":[],"bounds":{"document_bytes":16777216,"sheet_cells":100000,"rows_first":2000,"rows_last":500,"rows_between":2000,"halvings":0,"cell_chars":16384,"cell_head_chars":4096},"cells_cut":0,"cells_raw":0,"read":"whole","date_system":"1900"}

{"sheet":"Teilnehmerliste","index":0,"n_rows":39,"n_cols":20,"rows_kept":39,"cut":false,"hidden":false,"merged":[[38,1,38,2]]}
[null,null,null,null,null,null,null,null,null,null,null,null,null,null,null,null,null,null,null,"SpaltenEnde"]
[null,"Teilnehmerliste FB Ausbildung"]
[null,"Kategorie","B"]
[]
[null,"Verband","ZKAV","Hauptleiter","Markus Wüest","Total Leiter/Trainer"]
[]
[null,"Kursname","Nachwuchskurs 30m","Kursdatum"," ","Total Lektionen"]
[]
[null,"Teilnehmer",null,null,null,null,"Einheiten\npro\nTeilnehmer",null,"Datum / Anwesend / Ausbildungseinheiten"]
[null,"Vorname","Name","Geburtsdat.","Verein oder Wohnort","Kanton","Total","Neu","2015-01-01","Neu","Neu","Neu","Neu","Neu","Neu","Neu","Neu","Neu","2014-08-01"]
[null,"Neu",null,null,null,null,{"$f":"SUM(H11:S11)","v":0}]
[1," "," "," "," "," ",0,null," "," "]
[2,null,null,null,null,null,0]
[3,null,null,null,null,null,0]
[4,null,null,null,null,null,0]
[5,null,null,null,null,null,0]
[6,null,null,null,null,null,0]
[7,null,null,null,null,null,0]
[8,null,null,null,null,null,0]
[9,null,null,null,null,null,0]
[10,null,null,null,null,null,0]
[11,null,null,null,null,null,{"$f":"SUM(H22:S22)","v":0}]
[12,null,null,null,null,null,{"$f":"SUM(H23:S23)","v":0}]
[13,null,null,null,null,null,{"$f":"SUM(H24:S24)","v":0}]
[14,null,null,null,null,null,{"$f":"SUM(H25:S25)","v":0}]
[15,null,null,null,null,null,{"$f":"SUM(H26:S26)","v":0}]
[16,null,null,null,null,null,0]
[17,null,null,null,null,null,0]
[18,null,null,null,null,null,0]
[19,null,null,null,null,null,0]
[20,null,null,null,null,null,0]
[null,null,null,null,null,null,0]
["ZeilenEnde","Auswählen",null,null,null,null,0]
[null,"A",null,null,"Total Einheiten",null,{"$f":"SUM(G11:G33)","v":0},0,0,0,0,0,0,0,0,0,0,0,0]
[null,"B",null,null,"Anzahl Teilnehmer",null,{"$f":"COUNTA(C11:C33)","v":1}]
[null,"C",null,null,"Einheiten pro Teilnehmer",null,{"$f":"G34/G35","v":0}]
[]
[null,"Bemerkungen"]
[null,"Bestätigung Kursleiter \n(Datum / Unterschrift)"]

{"sheet":"Tabelle 2","index":1,"n_rows":0,"n_cols":0,"rows_kept":0,"cut":false,"hidden":false,"merged":[]}

{"sheet":"Tabelle 3","index":2,"n_rows":0,"n_cols":0,"rows_kept":0,"cut":false,"hidden":false,"merged":[]}